fUST/lending_fUST_20250822
["ID","MTS","AMOUNT","RATE_DAILY","PERIOD"]
[380506749,1755796270171,-13490.57,0.00021817,2]
[380506750,1755796270180,-749.78,0.00021817,2]
[380506751,1755796270190,-514.0,0.00021817,2]
[380506752,1755796270202,-480.0,0.00021817,2]
[380506753,1755796270212,-3003.54,0.00021817,2]
[380506754,1755796270221,-725.46,0.00021817,2]
[380506755,1755796270231,-12836.72,0.00021817,2]
[380506756,1755796270241,-480.0,0.00021817,2]
[380506757,1755796270251,-1243.1,0.00021817,2]
[380506758,1755796270261,-1609.93,0.00021817,2]
[380506759,1755796270270,-480.0,0.00021817,2]
[380506760,1755796270279,-480.0,0.00021817,2]
[380506761,1755796270288,-8565.46,0.00021817,2]
[380506762,1755796270297,-480.0,0.00021817,2]
[380506763,1755796270307,-513.5,0.00021818,2]
[380506764,1755796270316,-2071.92,0.00021818,2]
[380506765,1755796270325,-1723.01,0.00021818,2]
[380506766,1755796270334,-3623.53,0.00021818,2]
[380506767,1755796270346,-1000.0,0.00021821,2]
[380506768,1755796270481,-513.47,0.00021829,2]
[380506769,1755796270490,-480.0,0.00021829,2]
[380506770,1755796270499,-481.12,0.00021829,2]
[380506771,1755796270509,-1100.62,0.00021829,2]
[380506772,1755796270518,-676.36,0.00021829,2]
[380506773,1755796270528,-151.0,0.00021829,2]
[380506774,1755796270540,-151.0,0.00021829,2]
[380506775,1755796270549,-544.49,0.00021829,2]
[380506776,1755796270558,-151.0,0.00021829,2]
[380506777,1755796270568,-233.412459,0.00021829,2]
[380506778,1755796270577,-233.412459,0.00021829,2]
[380506779,1755796270586,-773.22,0.00021829,2]
[380506780,1755796270596,-233.412459,0.00021829,2]
[380506781,1755796270607,-233.412456,0.00021829,2]
[380506782,1755796270617,-480.0,0.00021829,2]
[380506783,1755796270627,-1666.89,0.00021829,2]
[380506784,1755796270637,-480.0,0.00021829,2]
[380506785,1755796270646,-480.0,0.00021829,2]
[380506786,1755796270655,-574.32,0.00021829,2]
[380506787,1755796270665,-686.37,0.00021829,2]
[380506788,1755796270674,-480.0,0.00021829,2]
[380506789,1755796270682,-783.65,0.00021829,2]
[380506790,1755796270691,-991.06,0.00021829,2]
[380506791,1755796270702,-480.0,0.00021829,2]
[380506792,1755796270711,-804.94,0.00021829,2]
[380506793,1755796270720,-480.0,0.00021829,2]
[380506794,1755796270729,-4916.94,0.00021829,2]
[380506795,1755796270738,-480.0,0.00021829,2]
[380506796,1755796270746,-1776.85,0.00021829,2]
[380506797,1755796270755,-918.37,0.00021829,2]
[380506798,1755796270764,-1076.14,0.00021829,2]
[380506799,1755796270772,-525.31,0.00021829,2]
[380506800,1755796270781,-2049.35,0.00021829,2]
[380506801,1755796270789,-480.0,0.00021829,2]
[380506802,1755796270798,-1215.14,0.00021829,2]
[380506803,1755796270807,-793.31,0.00021829,2]
[380506804,1755796270815,-500.0,0.0002183,2]
[380506805,1755796270824,-501.61182185,0.0002183,2]
[380506806,1755796270833,-480.0,0.0002183,2]
[380506807,1755796270842,-500.0,0.0002183,2]
[380506808,1755796270851,-584.10916113,0.0002183,2]
[380506809,1755796270860,-1285.05,0.0002183,2]
[380506810,1755796270868,-884.72,0.0002183,2]
[380506811,1755796270878,-978.38,0.0002183,2]
[380506812,1755796270887,-480.0,0.0002183,2]
[380506813,1755796270896,-395.24774704,0.0002183,2]
[380506814,1755796270905,-480.0,0.0002183,2]
[380506815,1755796270914,-480.0,0.0002183,2]
[380506816,1755796270923,-801.62,0.0002183,2]
[380506817,1755796270932,-1223.71,0.0002183,2]
[380506818,1755796270942,-677.58,0.0002183,2]
[380506819,1755796270955,-480.0,0.0002183,2]
[380506820,1755796270964,-480.0,0.0002183,2]
[380506821,1755796270974,-480.0,0.0002183,2]
[380506822,1755796270983,-566.96,0.0002183,2]
[380506823,1755796270993,-265.05303369,0.0002183,2]
[380506824,1755796271002,-480.0,0.0002183,2]
[380506825,1755796271011,-480.0,0.0002183,2]
[380506826,1755796271021,-1649.16,0.0002183,2]
[380506827,1755796271031,-715.91,0.0002183,2]
[380506828,1755796271040,-691.28,0.0002183,2]
[380506829,1755796271050,-480.0,0.0002183,2]
[380506830,1755796271059,-1001.2,0.0002183,2]
[380506831,1755796271069,-720.08,0.0002183,2]
[380506832,1755796271078,-823.48,0.0002183,2]
[380506833,1755796271087,-480.0,0.0002183,2]
[380506834,1755796271097,-480.0,0.0002183,2]
[380506835,1755796271107,-612.13,0.0002183,2]
[380506836,1755796271116,-502.96,0.0002183,2]
[380506837,1755796271126,-551.16,0.0002183,2]
[380506838,1755796271135,-529.97,0.0002183,2]
[380506839,1755796271144,-750.1,0.0002183,2]
[380506840,1755796271154,-3389.44,0.0002183,2]
[380506841,1755796271163,-480.0,0.0002183,2]
[380506842,1755796271173,-587.17,0.0002183,2]
[380506843,1755796271183,-480.0,0.0002183,2]
[380506844,1755796271192,-480.0,0.0002183,2]
[380506845,1755796271203,-480.0,0.0002183,2]
[380506846,1755796271212,-480.0,0.0002183,2]
[380506847,1755796271221,-630.38,0.0002183,2]
[380506848,1755796271231,-480.0,0.0002183,2]
[380506849,1755796271240,-480.0,0.0002183,2]
[380506850,1755796271250,-754.78,0.0002183,2]
[380506851,1755796271260,-480.0,0.0002183,2]
[380506852,1755796271269,-880.68,0.0002183,2]
[380506853,1755796271278,-1106.61,0.0002183,2]
[380506854,1755796271287,-1175.7,0.0002183,2]
[380506855,1755796271296,-176.547924,0.00021841,2]
[380506856,1755796271305,-176.547924,0.00021856,7]
[380506857,1755796271314,-179.0,0.00021864,2]
[380506858,1755796271323,-168.0,0.00021886,2]
[380506859,1755796271332,-1000.0,0.0002189,2]
[380506860,1755796271342,-698.43441002,0.0002189,2]
[380506861,1755796271524,-301.56558998,0.0002189,2]
[380506862,1755796271534,-1000.0,0.0002189,2]
[380506863,1755796271543,-1000.0,0.0002189,2]
[380506864,1755796271552,-1000.0,0.0002189,2]
[380506865,1755796271562,-1000.0,0.0002189,2]
[380506866,1755796271571,-1000.0,0.0002189,2]
[380506867,1755796271580,-1000.0,0.0002189,2]
[380506868,1755796271590,-1000.0,0.0002189,2]
[380506869,1755796271599,-1000.0,0.0002189,2]
[380506870,1755796271608,-1000.0,0.0002189,2]
[380506871,1755796271618,-1000.0,0.0002189,2]
[380506872,1755796271627,-1000.0,0.0002189,2]
[380506873,1755796271635,-1000.0,0.0002189,2]
[380506874,1755796271644,-1000.0,0.0002189,2]
[380506875,1755796271654,-1000.0,0.0002189,2]
[380506876,1755796271663,-1000.0,0.0002189,2]
[380506877,1755796271672,-1000.0,0.0002189,2]
[380506878,1755796271681,-1000.0,0.0002189,2]
[380506879,1755796271690,-967.49319872,0.0002189,2]
[380506880,1755796271700,-3000.0,0.000219,2]
[380506881,1755796271709,-973.0,0.00021903,2]
[380506882,1755796271719,-2154.0,0.00021903,2]
[380506883,1755796271728,-637.0,0.00021903,2]
[380506884,1755796271738,-408.0,0.00021904,2]
[380506885,1755796271747,-3000.0,0.0002191,2]
[380506886,1755796271756,-168.0,0.0002191,2]
[380506887,1755796271765,-284.0,0.00021912,2]
[380506888,1755796271774,-5122.72,0.00021917,2]
[380506889,1755796271783,-500.0,0.00021917,2]
[380506890,1755796271792,-500.0,0.00021917,2]
[380506891,1755796271801,-500.0,0.00021917,2]
[380506892,1755796271810,-182.52852487,0.00021917,2]
[380506893,1755796271819,-150.0,0.00021918,2]
[380506894,1755796271828,-3000.0,0.0002192,2]
[380506895,1755796271837,-3000.0,0.0002193,2]
[380506896,1755796271846,-480.0,0.00021931,3]
[380506897,1755796271856,-480.0,0.00021931,3]
[380506898,1755796271865,-494.99,0.00021931,3]
[380506899,1755796271874,-480.0,0.00021931,3]
[380506900,1755796271883,-263.47335387,0.00021931,3]
[380506901,1755796271892,-480.0,0.00021931,3]
[380506902,1755796271901,-350.53479837,0.00021931,3]
[380506903,1755796271910,-480.0,0.00021931,3]
[380506904,1755796271919,-480.0,0.00021931,3]
[380506905,1755796271929,-480.0,0.00021931,3]
[380506906,1755796271938,-480.0,0.00021931,3]
[380506907,1755796271948,-480.0,0.00021931,3]
[380506908,1755796271957,-555.05,0.00021931,3]
[380506909,1755796271967,-662.68,0.00021931,3]
[380506910,1755796271976,-480.0,0.00021931,3]
[380506911,1755796271985,-480.0,0.00021931,3]
[380506912,1755796271995,-504.0,0.00021931,3]
[380506913,1755796272004,-480.0,0.00021931,3]
[380506914,1755796272013,-579.16,0.00021931,3]
[380506915,1755796272022,-878.34,0.00021931,3]
[380506916,1755796272031,-625.09,0.00021931,3]
[380506917,1755796272040,-480.0,0.00021931,3]
[380506918,1755796272049,-480.0,0.00021931,3]
[380506919,1755796272059,-480.0,0.00021931,3]
[380506920,1755796272069,-480.0,0.00021931,3]
[380506921,1755796272078,-662.68,0.00021931,3]
[380506922,1755796272088,-486.45,0.00021931,3]
[380506923,1755796272098,-741.24,0.00021931,3]
[380506924,1755796272107,-480.0,0.00021931,3]
[380506925,1755796272116,-490.79,0.00021931,3]
[380506926,1755796272127,-839.98,0.00021931,3]
[380506927,1755796272136,-480.0,0.00021931,3]
[380506928,1755796272145,-617.8,0.00021931,3]
[380506929,1755796272154,-756.41,0.00021931,3]
[380506930,1755796272164,-480.0,0.00021931,3]
[380506931,1755796272174,-988.19,0.00021931,3]
[380506932,1755796272183,-719.39,0.00021931,2]
[380506933,1755796272193,-896.1,0.00021931,3]
[380506934,1755796272204,-735.04,0.00021931,3]
[380506935,1755796272214,-526.43,0.00021931,3]
[380506936,1755796272224,-751.72,0.00021931,3]
[380506937,1755796272233,-1889.29,0.00021931,3]
[380506938,1755796272243,-12287.85563623,0.0002194,3]
[380506939,1755796272252,-3000.0,0.0002194,2]
[380506940,1755796272261,-500.0,0.00021943,2]
[380506941,1755796272271,-151.0,0.00021943,2]
[380506942,1755796272280,-151.0,0.00021943,2]
[380506943,1755796272289,-250.61433319,0.00021943,2]
[380506944,1755796272298,-500.0,0.00021943,2]
[380506945,1755796272307,-151.0,0.00021943,2]
[380506946,1755796272316,-151.0,0.00021943,2]
[380506947,1755796272325,-151.0,0.00021943,2]
[380506948,1755796272335,-500.0,0.00021943,2]
[380506949,1755796272344,-500.0,0.00021943,2]
[380506950,1755796272353,-151.0,0.00021943,2]
[380506951,1755796272365,-151.0,0.00021943,2]
[380506952,1755796272374,-500.0,0.00021943,2]
[380506953,1755796272383,-500.0,0.00021943,2]
[380506954,1755796272392,-559.0,0.00021943,2]
[380506955,1755796272401,-500.0,0.00021943,2]
[380506956,1755796272411,-151.87492624,0.00021943,2]
[380506957,1755796272420,-151.0,0.00021943,2]
[380506958,1755796272429,-151.0,0.00021943,2]
[380506959,1755796272438,-152.86277154,0.00021943,2]
[380506960,1755796272450,-151.0,0.00021943,2]
[380506961,1755796272459,-480.0,0.00021943,3]
[380506962,1755796272468,-480.0,0.00021943,3]
[380506963,1755796272477,-480.0,0.00021943,3]
[380506964,1755796272486,-480.0,0.00021943,3]
[380506965,1755796272496,-3000.0,0.0002195,2]
[380506966,1755796272505,-176.547924,0.00021955,10]
[380506967,1755796272514,-3000.0,0.0002196,2]
[380506968,1755796272523,-3000.0,0.0002197,2]
[380506969,1755796272533,-5999.999999,0.0002198,2]
[380506970,1755796272545,-3902.95,0.00022,7]
[380506971,1755796272563,-812.21,0.00022,5]
[380506972,1755796272572,-691.45,0.00022,7]
[380506973,1755796272581,-48291.76,0.00022,2]
[380506974,1755796272590,-160.0,0.00022,3]
[380506975,1755796272599,-215.86710461,0.00022,3]
[380506976,1755796272609,-2000.0,0.00022068,3]
[380506977,1755796272618,-237.2109269,0.00022069,2]
[380506978,1755796272627,-553.68,0.00022088,3]
[380506979,1755796272765,-952.91,0.00022088,3]
[380506980,1755796272775,-1069.9,0.00022088,3]
[380506981,1755796272784,-841.6,0.00022088,3]
[380506982,1755796272793,-1098.95,0.00022088,3]
[380506983,1755796272802,-5724.64,0.00022089,3]
[380506984,1755796272811,-480.0,0.00022089,3]
[380506985,1755796272820,-3111.45,0.00022089,3]
[380506986,1755796272830,-638.16,0.00022089,3]
[380506987,1755796272839,-1517.06,0.00022089,3]
[380506988,1755796272847,-1101.04,0.00022089,3]
[380506989,1755796272856,-480.0,0.00022089,3]
[380506990,1755796272865,-480.0,0.00022089,3]
[380506991,1755796272874,-4775.52,0.00022089,3]
[380506992,1755796272883,-6987.43,0.00022089,3]
[380506993,1755796272892,-3878.59,0.00022089,3]
[380506994,1755796272902,-1093.09,0.00022089,3]
[380506995,1755796272911,-307.11049105,0.00022089,3]
[380506996,1755796272920,-2831.65,0.00022089,3]
[380506997,1755796272930,-899.66,0.00022089,3]
[380506998,1755796272939,-3918.0,0.00022089,3]
[380506999,1755796272948,-1555.41,0.00022089,3]
[380507000,1755796272957,-480.0,0.00022089,3]
[380507001,1755796272967,-596.22,0.00022089,3]
[380507002,1755796272976,-708.6,0.00022089,3]
[380507003,1755796272985,-1773.59,0.00022089,3]
[380507004,1755796272994,-150.0,0.0002209,2]
[380507005,1755796273003,-150.0,0.0002209,2]
[380507006,1755796273014,-254.438,0.0002209,2]
[380507007,1755796273023,-151.0,0.0002209,7]
[380507008,1755796273032,-704.13,0.00022091,3]
[380507009,1755796273041,-845.88,0.00022091,3]
[380507010,1755796273050,-499.52628512,0.00022091,3]
[380507011,1755796273059,-480.0,0.00022091,3]
[380507012,1755796273068,-480.0,0.00022091,3]
[380507013,1755796273077,-480.0,0.00022091,3]
[380507014,1755796273086,-480.0,0.00022091,3]
[380507015,1755796273095,-480.0,0.00022091,3]
[380507016,1755796273104,-480.0,0.00022091,3]
[380507017,1755796273113,-1251.4,0.00022091,3]
[380507018,1755796273123,-1860.53,0.00022091,3]
[380507019,1755796273132,-480.0,0.00022091,3]
[380507020,1755796273141,-1217.86,0.00022091,3]
[380507021,1755796273151,-584.1,0.00022091,3]
[380507022,1755796273159,-566.7,0.00022091,3]
[380507023,1755796273168,-480.0,0.00022091,3]
[380507024,1755796273177,-480.0,0.00022091,3]
[380507025,1755796273186,-480.0,0.00022091,3]
[380507026,1755796273196,-480.0,0.00022091,3]
[380507027,1755796273205,-1339.59,0.00022091,3]
[380507028,1755796273214,-764.64,0.00022091,3]
[380507029,1755796273224,-1403.75,0.00022091,3]
[380507030,1755796273233,-493.09,0.00022091,3]
[380507031,1755796273242,-1591.86,0.00022091,3]
[380507032,1755796273251,-1264.66,0.00022091,3]
[380507033,1755796273260,-480.0,0.00022091,3]
[380507034,1755796273270,-480.0,0.00022091,3]
[380507035,1755796273279,-480.0,0.00022091,3]
[380507036,1755796273288,-638.49,0.00022091,3]
[380507037,1755796273297,-480.0,0.00022091,3]
[380507038,1755796273307,-712.51,0.00022091,3]
[380507039,1755796273316,-898.89,0.00022091,3]
[380507040,1755796273325,-1704.85,0.00022091,3]
[380507041,1755796273334,-578.35,0.00022091,3]
[380507042,1755796273343,-1348.45,0.00022091,3]
[380507043,1755796273352,-480.0,0.00022091,3]
[380507044,1755796273362,-1704.87,0.00022091,3]
[380507045,1755796273373,-1021.37,0.00022091,3]
[380507046,1755796273382,-609.40558063,0.00022091,3]
[380507047,1755796273391,-2738.27,0.00022091,3]
[380507048,1755796273401,-764.6,0.00022091,3]
[380507049,1755796273410,-1669.08,0.00022091,3]
[380507050,1755796273421,-3186.28,0.00022091,3]
[380507051,1755796273429,-2363.46,0.00022091,3]
[380507052,1755796273439,-862.84,0.00022091,3]
[380507053,1755796273448,-1526.94,0.00022091,3]
[380507054,1755796273457,-480.0,0.00022091,3]
[380507055,1755796273466,-517.72,0.00022091,3]
[380507056,1755796273475,-13490.57,0.00022091,3]
[380507057,1755796273485,-749.78,0.00022091,3]
[380507058,1755796273494,-514.0,0.00022091,3]
[380507059,1755796273503,-480.0,0.00022091,3]
[380507060,1755796273512,-3003.54,0.00022091,3]
[380507061,1755796273521,-725.46,0.00022091,3]
[380507062,1755796273530,-12836.72,0.00022091,3]
[380507063,1755796273541,-480.0,0.00022091,3]
[380507064,1755796273550,-1243.1,0.00022091,3]
[380507065,1755796273559,-1609.93,0.00022091,3]
[380507066,1755796273569,-480.0,0.00022091,3]
[380507067,1755796273577,-480.0,0.00022091,3]
[380507068,1755796273586,-8565.46,0.00022091,3]
[380507069,1755796273595,-513.5,0.00022092,3]
[380507070,1755796273604,-2071.92,0.00022092,3]
[380507071,1755796273613,-1723.01,0.00022092,3]
[380507072,1755796273622,-3623.53,0.00022092,3]
[380507073,1755796273631,-176.547924,0.000221,2]
[380507074,1755796273641,-160.0,0.000221,3]
[380507075,1755796273650,-215.86710461,0.000221,3]
[380507076,1755796273661,-513.47,0.00022103,3]
[380507077,1755796273671,-480.0,0.00022103,3]
[380507078,1755796273680,-481.12,0.00022103,3]
[380507079,1755796273689,-1100.62,0.00022103,3]
[380507080,1755796273698,-676.36,0.00022103,3]
[380507081,1755796273708,-544.49,0.00022103,3]
[380507082,1755796273717,-773.22,0.00022103,3]
[380507083,1755796273727,-480.0,0.00022103,3]
[380507084,1755796273736,-1666.89,0.00022103,3]
[380507085,1755796273745,-480.0,0.00022103,3]
[380507086,1755796273756,-480.0,0.00022103,3]
[380507087,1755796273765,-574.32,0.00022103,3]
[380507088,1755796273775,-686.37,0.00022103,3]
[380507089,1755796273784,-480.0,0.00022103,3]
[380507090,1755796273794,-783.65,0.00022103,3]
[380507091,1755796273803,-991.06,0.00022103,3]
[380507092,1755796273812,-480.0,0.00022103,3]
[380507093,1755796273822,-804.94,0.00022103,3]
[380507094,1755796273833,-480.0,0.00022103,3]
[380507095,1755796273842,-4916.94,0.00022103,3]
[380507096,1755796273852,-480.0,0.00022103,3]
[380507097,1755796273862,-1776.85,0.00022103,3]
[380507098,1755796273871,-918.37,0.00022103,3]
[380507099,1755796273882,-1076.14,0.00022103,3]
[380507100,1755796273891,-525.31,0.00022103,3]
[380507101,1755796273900,-2049.35,0.00022103,3]
[380507102,1755796273909,-480.0,0.00022103,3]
[380507103,1755796273918,-1215.14,0.00022103,3]
[380507104,1755796273928,-793.31,0.00022103,3]
[380507105,1755796273936,-480.0,0.00022104,3]
[380507106,1755796273945,-1285.05,0.00022104,3]
[380507107,1755796273956,-884.72,0.00022104,3]
[380507108,1755796273965,-978.38,0.00022104,3]
[380507109,1755796273974,-168.84587543,0.00022104,3]
[380507110,1755796273983,-480.0,0.00022104,3]
[380507111,1755796273992,-480.0,0.00022104,3]
[380507112,1755796274001,-801.62,0.00022104,3]
[380507113,1755796274012,-1223.71,0.00022104,3]
[380507114,1755796274022,-677.58,0.00022104,3]
[380507115,1755796274031,-480.0,0.00022104,3]
[380507116,1755796274040,-480.0,0.00022104,3]
[380507117,1755796274049,-480.0,0.00022104,3]
[380507118,1755796274059,-566.96,0.00022104,3]
[380507119,1755796274070,-480.0,0.00022104,3]
[380507120,1755796274080,-480.0,0.00022104,3]
[380507121,1755796274089,-1649.16,0.00022104,3]
[380507122,1755796274098,-715.91,0.00022104,3]
[380507123,1755796274108,-691.28,0.00022104,3]
[380507124,1755796274117,-480.0,0.00022104,3]
[380507125,1755796274126,-1001.2,0.00022104,3]
[380507126,1755796274136,-720.08,0.00022104,3]
[380507127,1755796274146,-823.48,0.00022104,3]
[380507128,1755796274155,-173.48915742,0.00022104,3]
[380507129,1755796274165,-480.0,0.00022104,3]
[380507130,1755796274175,-612.13,0.00022104,3]
[380507131,1755796274185,-502.96,0.00022104,3]
[380507132,1755796274194,-551.16,0.00022104,3]
[380507133,1755796274205,-529.97,0.00022104,3]
[380507134,1755796274217,-750.1,0.00022104,3]
[380507135,1755796274227,-3389.44,0.00022104,3]
[380507136,1755796274237,-480.0,0.00022104,3]
[380507137,1755796274247,-587.17,0.00022104,3]
[380507138,1755796274257,-221.47971393,0.00022104,3]
[380507139,1755796274266,-480.0,0.00022104,3]
[380507140,1755796274275,-480.0,0.00022104,3]
[380507141,1755796274285,-480.0,0.00022104,3]
[380507142,1755796274295,-630.38,0.00022104,3]
[380507143,1755796274304,-480.0,0.00022104,3]
[380507144,1755796274313,-480.0,0.00022104,3]
[380507145,1755796274322,-754.78,0.00022104,3]
[380507146,1755796274332,-480.0,0.00022104,3]
[380507147,1755796274341,-880.68,0.00022104,3]
[380507148,1755796274351,-1106.61,0.00022104,3]
[380507149,1755796274360,-1175.7,0.00022104,3]
[380507150,1755796274371,-2000.0,0.00022116,2]
[380507151,1755796274382,-500.0,0.00022116,2]
[380507152,1755796274391,-218.986,0.00022133,2]
[380507153,1755796274400,-4000.0,0.00022151,4]
[380507154,1755796274409,-168.0,0.00022156,2]
[380507155,1755796274419,-168.0,0.00022157,2]
[380507156,1755796274428,-460.0,0.00022169,2]
[380507157,1755796274437,-600.0,0.00022191,2]
[380507158,1755796274449,-326.0,0.000222,3]
[380507159,1755796274458,-326.0,0.000222,3]
[380507160,1755796274468,-326.0,0.000222,3]
[380507161,1755796274477,-326.0,0.000222,3]
[380507162,1755796274486,-326.0,0.000222,3]
[380507163,1755796274495,-326.0,0.000222,3]
[380507164,1755796274503,-326.0,0.000222,3]
[380507165,1755796274512,-326.0,0.000222,3]
[380507166,1755796274522,-329.86479115,0.000222,3]
[380507167,1755796274531,-176.547924,0.00022204,10]
[380507168,1755796274540,-480.0,0.00022205,3]
[380507169,1755796274549,-480.0,0.00022205,3]
[380507170,1755796274558,-494.99,0.00022205,3]
[380507171,1755796274567,-480.0,0.00022205,3]
[380507172,1755796274576,-480.0,0.00022205,3]
[380507173,1755796274585,-480.0,0.00022205,3]
[380507174,1755796274594,-480.0,0.00022205,3]
[380507175,1755796274604,-480.0,0.00022205,3]
[380507176,1755796274613,-480.0,0.00022205,3]
[380507177,1755796274622,-480.0,0.00022205,3]
[380507178,1755796274631,-555.05,0.00022205,3]
[380507179,1755796274641,-662.68,0.00022205,3]
[380507180,1755796274650,-480.0,0.00022205,3]
[380507181,1755796274659,-342.73129191,0.00022205,3]
[380507182,1755796274669,-504.0,0.00022205,3]
[380507183,1755796274678,-480.0,0.00022205,3]
[380507184,1755796274687,-579.16,0.00022205,3]
[380507185,1755796274696,-878.34,0.00022205,3]
[380507186,1755796274707,-625.09,0.00022205,3]
[380507187,1755796274716,-480.0,0.00022205,3]
[380507188,1755796274725,-480.0,0.00022205,3]
[380507189,1755796274734,-480.0,0.00022205,3]
[380507190,1755796274743,-480.0,0.00022205,3]
[380507191,1755796274753,-662.68,0.00022205,3]
[380507192,1755796274763,-486.45,0.00022205,3]
[380507193,1755796274773,-741.24,0.00022205,3]
[380507194,1755796274782,-480.0,0.00022205,3]
[380507195,1755796274791,-490.79,0.00022205,3]
[380507196,1755796274800,-839.98,0.00022205,3]
[380507197,1755796274809,-480.0,0.00022205,3]
[380507198,1755796274819,-617.8,0.00022205,3]
[380507199,1755796274828,-756.41,0.00022205,3]
[380507200,1755796274838,-480.0,0.00022205,3]
[380507201,1755796274847,-988.19,0.00022205,3]
[380507202,1755796274856,-719.39,0.00022205,2]
[380507203,1755796274864,-896.1,0.00022205,3]
[380507204,1755796274874,-735.04,0.00022205,3]
[380507205,1755796274882,-526.43,0.00022205,3]
[380507206,1755796274891,-751.72,0.00022205,3]
[380507207,1755796274902,-1889.29,0.00022205,3]
[380507208,1755796274912,-604.0,0.00022217,2]
[380507209,1755796274921,-151.0,0.00022217,2]
[380507210,1755796274931,-198.0,0.00022217,2]
[380507211,1755796275048,-302.0,0.00022217,2]
[380507212,1755796275068,-151.63330462,0.00022217,2]
[380507213,1755796275077,-198.86680626,0.00022217,2]
[380507214,1755796275086,-510.64253542,0.00022217,2]
[380507215,1755796275095,-302.0,0.00022217,2]
[380507216,1755796275104,-204.0947605,0.00022217,2]
[380507217,1755796275113,-151.0,0.00022217,2]
[380507218,1755796275122,-500.0,0.00022217,2]
[380507219,1755796275131,-349.0,0.00022217,2]
[380507220,1755796275141,-559.0,0.00022217,2]
[380507221,1755796275150,-500.0,0.00022217,2]
[380507222,1755796275159,-227.2761671,0.00022217,2]
[380507223,1755796275169,-480.0,0.00022217,3]
[380507224,1755796275178,-480.0,0.00022217,3]
[380507225,1755796275187,-480.0,0.00022217,3]
[380507226,1755796275196,-480.0,0.00022217,3]
[380507227,1755796275206,-176.547924,0.00022231,7]
[380507228,1755796275215,-179.0,0.00022237,2]
[380507229,1755796275224,-168.0,0.0002227,2]
[380507230,1755796275233,-179.0,0.00022295,2]
[380507231,1755796275242,-12685.85563623,0.000223,7]
[380507232,1755796275251,-160.0,0.000223,7]
[380507233,1755796275260,-215.86710461,0.000223,7]
[380507234,1755796275269,-2000.0,0.00022316,2]
[380507235,1755796275278,-1331.0,0.00022335,2]
[380507236,1755796275287,-326.0,0.00022345,3]
[380507237,1755796275296,-326.0,0.00022345,3]
[380507238,1755796275305,-288.35200594,0.00022345,3]
[380507239,1755796275314,-176.547924,0.0002236,2]
[380507240,1755796275323,-553.68,0.00022362,3]
[380507241,1755796275333,-952.91,0.00022362,3]
[380507242,1755796275342,-1069.9,0.00022362,3]
[380507243,1755796275351,-841.6,0.00022362,3]
[380507244,1755796275359,-1098.95,0.00022362,3]
[380507245,1755796275369,-5724.64,0.00022363,3]
[380507246,1755796275381,-480.0,0.00022363,3]
[380507247,1755796275390,-3111.45,0.00022363,3]
[380507248,1755796275399,-638.16,0.00022363,3]